fUST/lending_fUST_20240121
["ID","MTS","AMOUNT","RATE_DAILY","PERIOD"]
[312307377,1705768251945,-500.0,0.00041917,31]
[312307378,1705768251955,-941.1,0.00041917,31]
[312307379,1705768251964,-510.15068157,0.00041917,31]
[312307380,1705768251974,-500.0,0.00041917,31]
[312307381,1705768251983,-895.69,0.00041917,31]
[312307382,1705768251992,-520.04139779,0.00041917,31]
[312307383,1705768252001,-400.63325162,0.00041917,31]
[312307384,1705768252011,-500.0,0.00041917,31]
[312307385,1705768252021,-825.39,0.00041917,31]
[312307386,1705768252032,-501.51511177,0.00041917,31]
[312307387,1705768252041,-500.0,0.00041917,31]
[312307388,1705768252051,-500.0,0.00041917,31]
[312307389,1705768252061,-500.0,0.00041917,31]
[312307390,1705768252072,-500.0,0.00041917,31]
[312307391,1705768252081,-500.0,0.00041917,31]
[312307392,1705768252091,-462.16887839,0.00041917,31]
[312307393,1705768252103,-500.0,0.00041917,31]
[312307394,1705768252113,-181.40613971,0.00041917,31]
[312307395,1705768252122,-500.0,0.00041917,31]
[312307396,1705768252131,-608.63,0.00041917,31]
[312307397,1705768252140,-500.0,0.00041917,31]
[312307398,1705768252149,-500.0,0.00041917,31]
[312307399,1705768252158,-500.0,0.00041917,31]
[312307400,1705768252167,-750.02,0.00041917,31]
[312307401,1705768252176,-1120.83,0.00041917,31]
[312307402,1705768252186,-500.0,0.00041917,31]
[312307403,1705768252195,-500.0,0.00041917,31]
[312307404,1705768252204,-500.0,0.00041917,31]
[312307405,1705768252214,-1517.52,0.00041917,31]
[312307406,1705768252224,-500.0,0.00041917,31]
[312307407,1705768252233,-500.0,0.00041917,31]
[312307408,1705768252242,-500.0,0.00041917,31]
[312307409,1705768252251,-500.0,0.00041917,31]
[312307410,1705768252260,-500.0,0.00041917,31]
[312307411,1705768252270,-502.30958923,0.00041917,31]
[312307412,1705768252279,-410.4711674,0.00041917,31]
[312307413,1705768252289,-533.5,0.00041917,31]
[312307414,1705768252297,-500.0,0.00041917,31]
[312307415,1705768252307,-864.03,0.00041917,31]
[312307416,1705768252316,-500.0,0.00041917,31]
[312307417,1705768252324,-500.0,0.00041917,31]
[312307418,1705768252334,-500.0,0.00041917,31]
[312307419,1705768252344,-500.0,0.00041917,31]
[312307420,1705768252354,-500.0,0.00041917,31]
[312307421,1705768252363,-500.0,0.00041917,31]
[312307422,1705768252372,-2134.02,0.00041917,31]
[312307423,1705768252381,-500.0,0.00041917,31]
[312307424,1705768252390,-3009.65,0.00041917,31]
[312307425,1705768252399,-627.11475971,0.00041917,31]
[312307426,1705768252408,-500.0,0.00041917,31]
[312307427,1705768252417,-500.0,0.00041917,31]
[312307428,1705768252428,-521.44,0.00041917,31]
[312307429,1705768252438,-1074.76,0.00041917,31]
[312307430,1705768252447,-524.91461087,0.00041917,31]
[312307431,1705768252457,-1071.51,0.00041917,31]
[312307432,1705768252466,-4081.11,0.00041917,31]
[312307433,1705768252474,-570.18724749,0.00041917,31]
[312307434,1705768252483,-500.0,0.00041917,31]
[312307435,1705768252492,-591.47806634,0.00041917,31]
[312307436,1705768252502,-500.0,0.00041917,31]
[312307437,1705768252511,-500.0,0.00041917,31]
[312307438,1705768252521,-620.47646215,0.00041917,31]
[312307439,1705768252530,-593.13,0.00041917,31]
[312307440,1705768252540,-1036.63,0.00041917,31]
[312307441,1705768252549,-1282.52,0.00041917,31]
[312307442,1705768252558,-500.0,0.00041917,31]
[312307443,1705768252567,-500.0,0.00041917,31]
[312307444,1705768252577,-38160.15,0.00041917,14]
[312307445,1705768252587,-500.0,0.00041917,31]
[312307446,1705768252596,-502.67,0.00041917,31]
[312307447,1705768252606,-500.0,0.00041917,31]
[312307448,1705768252616,-500.0,0.00041917,2]
[312307449,1705768252627,-500.0,0.00041917,31]
[312307450,1705768252637,-500.0,0.00041917,31]
[312307451,1705768252648,-978.22,0.00041917,31]
[312307452,1705768252658,-500.0,0.00041917,31]
[312307453,1705768252668,-2641.83,0.00041917,31]
[312307454,1705768252678,-661.96,0.00041917,31]
[312307455,1705768252688,-500.0,0.00041917,31]
[312307456,1705768252697,-2819.62,0.00041917,31]
[312307457,1705768252705,-500.0,0.00041917,31]
[312307458,1705768252716,-601.58695378,0.00041917,31]
[312307459,1705768252724,-500.0,0.00041917,31]
[312307460,1705768252734,-785.7,0.00041917,31]
[312307461,1705768252745,-671.17,0.00041917,31]
[312307462,1705768252755,-500.0,0.00041917,31]
[312307463,1705768252766,-500.0,0.00041917,31]
[312307464,1705768252775,-500.0,0.00041917,31]
[312307465,1705768252784,-500.0,0.00041917,31]
[312307466,1705768252794,-7239.54,0.00041917,31]
[312307467,1705768252803,-500.0,0.00041917,31]
[312307468,1705768252812,-1404.08,0.00041917,31]
[312307469,1705768252822,-3332.09,0.00041917,31]
[312307470,1705768252831,-500.0,0.00041917,31]
[312307471,1705768252841,-2010.87,0.00041917,31]
[312307472,1705768252850,-500.0,0.00041917,31]
[312307473,1705768252859,-603.98,0.00041917,31]
[312307474,1705768252869,-500.0,0.00041917,31]
[312307475,1705768252878,-505.75677177,0.00041917,31]
[312307476,1705768252888,-500.0,0.00041917,31]
[312307477,1705768252897,-1881.4,0.00041917,31]
[312307478,1705768252907,-519.85,0.00041917,31]
[312307479,1705768252916,-500.0,0.00041917,20]
[312307480,1705768252926,-500.0,0.00041917,31]
[312307481,1705768252936,-20675.05,0.00041917,31]
[312307482,1705768252946,-12301.24,0.00041917,31]
[312307483,1705768252955,-231.51124722,0.00041917,31]
[312307484,1705768252964,-1760.13,0.00041917,31]
[312307485,1705768252973,-924.27,0.00041917,31]
[312307486,1705768252982,-10176.61,0.00041917,31]
[312307487,1705768252991,-606.97,0.00041917,31]
[312307488,1705768253001,-4214.41,0.00041917,31]
[312307489,1705768253010,-856.72,0.00041917,31]
[312307490,1705768253019,-500.0,0.00041917,31]
[312307491,1705768253028,-1560.84,0.00041917,31]
[312307492,1705768253037,-610.35,0.00041917,31]
[312307493,1705768253046,-500.0,0.00041917,31]
[312307494,1705768253055,-500.0,0.00041917,31]
[312307495,1705768253064,-500.0,0.00041917,31]
[312307496,1705768253073,-1771.96,0.00041917,31]
[312307497,1705768253082,-500.0,0.00041917,31]
[312307498,1705768253091,-1165.2,0.00041917,31]
[312307499,1705768253101,-2127.81,0.00041917,31]
[312307500,1705768253110,-500.0,0.00041917,31]
[312307501,1705768253119,-500.0,0.00041917,31]
[312307502,1705768253128,-1094.5,0.00041917,31]
[312307503,1705768253137,-500.0,0.00041917,31]
[312307504,1705768253146,-500.0,0.00041917,31]
[312307505,1705768253155,-500.0,0.00041917,31]
[312307506,1705768253164,-500.0,0.00041917,31]
[312307507,1705768253173,-500.0,0.00041917,31]
[312307508,1705768253182,-7904.3,0.00041917,31]
[312307509,1705768253191,-500.0,0.00041917,31]
[312307510,1705768253201,-500.0,0.00041917,31]
[312307511,1705768253210,-543.29,0.00041917,31]
[312307512,1705768253220,-274.18080315,0.00041917,31]
[312307513,1705768253229,-880.29,0.00041917,31]
[312307514,1705768253239,-500.0,0.00041917,31]
[312307515,1705768253248,-9860.07,0.00041917,31]
[312307516,1705768253258,-500.0,0.00041917,31]
[312307517,1705768253269,-500.0,0.00041917,31]
[312307518,1705768253279,-500.0,0.00041917,31]
[312307519,1705768253288,-500.0,0.00041917,31]
[312307520,1705768253297,-500.0,0.00041917,31]
[312307521,1705768253307,-2185.48,0.00041917,31]
[312307522,1705768253316,-500.0,0.00041917,31]
[312307523,1705768253325,-500.0,0.00041917,31]
[312307524,1705768253335,-500.0,0.00041917,31]
[312307525,1705768253346,-500.0,0.00041917,31]
[312307526,1705768253355,-500.0,0.00041917,31]
[312307527,1705768253366,-583.7,0.00041917,31]
[312307528,1705768253375,-500.0,0.00041917,31]
[312307529,1705768253384,-1814.69,0.00041917,31]
[312307530,1705768253394,-500.0,0.00041917,31]
[312307531,1705768253403,-2196.59,0.00041917,31]
[312307532,1705768253412,-500.0,0.00041917,31]
[312307533,1705768253423,-500.0,0.00041917,31]
[312307534,1705768253433,-500.0,0.00041917,31]
[312307535,1705768253442,-500.0,0.00041917,31]
[312307536,1705768253452,-500.0,0.00041917,31]
[312307537,1705768253461,-865.85,0.00041917,31]
[312307538,1705768253471,-500.0,0.00041917,31]
[312307539,1705768253481,-500.0,0.00041917,31]
[312307540,1705768253490,-1142.53,0.00041917,7]
[312307541,1705768253499,-268.201841,0.00041917,31]
[312307542,1705768253509,-500.0,0.00041917,31]
[312307543,1705768253518,-500.0,0.00041917,31]
[312307544,1705768253527,-500.0,0.00041917,31]
[312307545,1705768253538,-500.0,0.00041917,31]
[312307546,1705768253547,-500.0,0.00041917,31]
[312307547,1705768253557,-1927.86,0.00041917,31]
[312307548,1705768253567,-500.0,0.00041917,31]
[312307549,1705768253576,-242.68756279,0.00041917,31]
[312307550,1705768253586,-121164.6705553,0.00042,30]
[312307551,1705768253595,-1000.0,0.00042,42]
[312307552,1705768253605,-12558.99417028,0.00042,10]
[312307553,1705768253614,-16072.41159657,0.00042,120]
[312307554,1705768253624,-151.0,0.00042,7]
[312307555,1705768253634,-714.627315,0.00042,7]
[312307556,1705768253643,-714.627315,0.00042,7]
[312307557,1705768253653,-1720.40788452,0.00042,15]
[312307558,1705768253663,-9231.41790768,0.00042,15]
[312307559,1705768253673,-1321.756913,0.00042,15]
[312307560,1705768253682,-616.10263652,0.00042,15]
[312307561,1705768253691,-2000.0,0.00042027,15]
[312307562,1705768253701,-266.3391999,0.00042095,30]
[312307563,1705768253710,-500.0,0.00042095,30]
[312307564,1705768253720,-429.18241313,0.00042095,30]
[312307565,1705768253730,-187.88517879,0.00042095,30]
[312307566,1705768253740,-500.0,0.00042095,30]
[312307567,1705768253749,-500.0,0.00042095,30]
[312307568,1705768253759,-483.90008682,0.00042095,30]
[312307569,1705768253769,-500.0,0.00042095,30]
[312307570,1705768253779,-300.0,0.00042095,30]
[312307571,1705768253789,-574.48428469,0.00042095,30]
[312307572,1705768253798,-402.79448058,0.00042095,30]
[312307573,1705768253809,-500.0,0.00042095,30]
[312307574,1705768253818,-500.0,0.00042095,30]
[312307575,1705768253828,-500.0,0.00042095,30]
[312307576,1705768253838,-500.0,0.00042095,30]
[312307577,1705768253848,-500.0,0.00042095,30]
[312307578,1705768253858,-500.0,0.00042095,30]
[312307579,1705768253867,-500.0,0.00042095,30]
[312307580,1705768253877,-500.0,0.00042095,30]
[312307581,1705768253990,-500.0,0.00042095,30]
[312307582,1705768254000,-606.13962579,0.00042095,30]
[312307583,1705768254010,-500.0,0.00042095,30]
[312307584,1705768254020,-156.965517,0.0004214,30]
[312307585,1705768254030,-20033.80210232,0.00042186,2]
[312307586,1705768254039,-777.0,0.0004219,4]
[312307587,1705768254049,-500.0,0.00042191,31]
[312307588,1705768254058,-500.0,0.00042191,31]
[312307589,1705768254068,-500.0,0.00042191,31]
[312307590,1705768254077,-717.95,0.00042191,31]
[312307591,1705768254087,-530.38,0.00042191,31]
[312307592,1705768254096,-500.0,0.00042191,31]
[312307593,1705768254105,-206.84830362,0.00042191,31]
[312307594,1705768254115,-500.0,0.00042191,31]
[312307595,1705768254124,-500.0,0.00042191,31]
[312307596,1705768254133,-500.0,0.00042191,31]
[312307597,1705768254142,-500.0,0.00042191,31]
[312307598,1705768254151,-500.0,0.00042191,31]
[312307599,1705768254160,-893.05,0.00042191,31]
[312307600,1705768254169,-500.0,0.00042191,31]
[312307601,1705768254178,-150.0,0.00042191,31]
[312307602,1705768254188,-1000.0,0.00042191,2]
[312307603,1705768254197,-500.0,0.00042191,31]
[312307604,1705768254206,-889.73,0.00042191,31]
[312307605,1705768254215,-462.74052581,0.00042191,31]
[312307606,1705768254226,-898.56,0.00042191,31]
[312307607,1705768254235,-500.0,0.00042191,31]
[312307608,1705768254244,-551.52574435,0.00042191,31]
[312307609,1705768254253,-500.0,0.00042191,31]
[312307610,1705768254262,-941.1,0.00042191,31]
[312307611,1705768254270,-500.0,0.00042191,31]
[312307612,1705768254279,-895.69,0.00042191,31]
[312307613,1705768254289,-500.0,0.00042191,31]
[312307614,1705768254298,-825.39,0.00042191,31]
[312307615,1705768254307,-500.0,0.00042191,31]
[312307616,1705768254316,-500.0,0.00042191,31]
[312307617,1705768254325,-500.0,0.00042191,31]
[312307618,1705768254335,-500.0,0.00042191,31]
[312307619,1705768254347,-500.0,0.00042191,31]
[312307620,1705768254356,-500.0,0.00042191,31]
[312307621,1705768254366,-500.0,0.00042191,31]
[312307622,1705768254375,-608.63,0.00042191,31]
[312307623,1705768254384,-623.29598801,0.00042191,31]
[312307624,1705768254393,-500.0,0.00042191,31]
[312307625,1705768254402,-500.0,0.00042191,31]
[312307626,1705768254412,-750.02,0.00042191,31]
[312307627,1705768254422,-1120.83,0.00042191,31]
[312307628,1705768254432,-500.0,0.00042191,31]
[312307629,1705768254441,-500.0,0.00042191,31]
[312307630,1705768254450,-502.14701638,0.00042191,31]
[312307631,1705768254459,-1517.52,0.00042191,31]
[312307632,1705768254469,-500.0,0.00042191,31]
[312307633,1705768254478,-500.0,0.00042191,31]
[312307634,1705768254487,-500.0,0.00042191,31]
[312307635,1705768254497,-500.0,0.00042191,31]
[312307636,1705768254505,-500.0,0.00042191,31]
[312307637,1705768254515,-533.5,0.00042191,31]
[312307638,1705768254525,-500.0,0.00042191,31]
[312307639,1705768254534,-864.03,0.00042191,31]
[312307640,1705768254544,-500.0,0.00042191,31]
[312307641,1705768254553,-500.0,0.00042191,31]
[312307642,1705768254562,-500.0,0.00042191,31]
[312307643,1705768254572,-500.0,0.00042191,31]
[312307644,1705768254581,-500.0,0.00042191,31]
[312307645,1705768254590,-500.0,0.00042191,31]
[312307646,1705768254599,-500.0,0.00042191,31]
[312307647,1705768254608,-2134.02,0.00042191,31]
[312307648,1705768254617,-3009.65,0.00042191,31]
[312307649,1705768254626,-500.0,0.00042191,31]
[312307650,1705768254635,-500.0,0.00042191,31]
[312307651,1705768254644,-521.44,0.00042191,31]
[312307652,1705768254654,-1074.76,0.00042191,31]
[312307653,1705768254664,-1071.51,0.00042191,31]
[312307654,1705768254672,-4081.11,0.00042191,31]
[312307655,1705768254682,-500.0,0.00042191,31]
[312307656,1705768254691,-500.0,0.00042191,31]
[312307657,1705768254700,-500.0,0.00042191,31]
[312307658,1705768254710,-593.13,0.00042191,31]
[312307659,1705768254719,-1036.63,0.00042191,31]
[312307660,1705768254729,-1282.52,0.00042191,31]
[312307661,1705768254738,-507.36841167,0.00042191,31]
[312307662,1705768254747,-500.0,0.00042191,31]
[312307663,1705768254756,-38160.15,0.00042191,14]
[312307664,1705768254765,-161.64280442,0.00042191,31]
[312307665,1705768254774,-502.67,0.00042191,31]
[312307666,1705768254783,-500.0,0.00042191,31]
[312307667,1705768254792,-500.0,0.00042191,2]
[312307668,1705768254802,-500.0,0.00042191,31]
[312307669,1705768254811,-500.0,0.00042191,31]
[312307670,1705768254820,-978.22,0.00042191,31]
[312307671,1705768254830,-2641.83,0.00042191,31]
[312307672,1705768254839,-661.96,0.00042191,31]
[312307673,1705768254849,-500.0,0.00042191,31]
[312307674,1705768254858,-632.46,0.00042191,31]
[312307675,1705768254867,-2819.62,0.00042191,31]
[312307676,1705768254877,-500.0,0.00042191,31]
[312307677,1705768254887,-259.42905139,0.00042191,31]
[312307678,1705768254897,-785.7,0.00042191,31]
[312307679,1705768254906,-671.17,0.00042191,31]
[312307680,1705768254915,-500.0,0.00042191,31]
[312307681,1705768254924,-500.0,0.00042191,31]
[312307682,1705768254934,-500.0,0.00042191,31]
[312307683,1705768254943,-500.0,0.00042191,31]
[312307684,1705768254952,-7239.54,0.00042191,31]
[312307685,1705768254962,-500.0,0.00042191,31]
[312307686,1705768254971,-1404.08,0.00042191,31]
[312307687,1705768254980,-3332.09,0.00042191,31]
[312307688,1705768254989,-500.0,0.00042191,31]
[312307689,1705768254998,-2010.87,0.00042191,31]
[312307690,1705768255007,-500.0,0.00042191,31]
[312307691,1705768255016,-603.98,0.00042191,31]
[312307692,1705768255025,-500.0,0.00042191,31]
[312307693,1705768255034,-500.0,0.00042191,31]
[312307694,1705768255043,-1881.4,0.00042191,31]
[312307695,1705768255052,-519.85,0.00042191,31]
[312307696,1705768255061,-500.0,0.00042191,20]
[312307697,1705768255070,-500.0,0.00042191,31]
[312307698,1705768255079,-20675.05,0.00042191,31]
[312307699,1705768255089,-12301.24,0.00042191,31]
[312307700,1705768255097,-1760.13,0.00042191,31]
[312307701,1705768255107,-924.27,0.00042191,31]
[312307702,1705768255118,-10176.61,0.00042191,31]
[312307703,1705768255127,-606.97,0.00042191,31]
[312307704,1705768255136,-4214.41,0.00042191,31]
[312307705,1705768255145,-856.72,0.00042191,31]
[312307706,1705768255154,-500.0,0.00042191,31]
[312307707,1705768255163,-1560.84,0.00042191,31]
[312307708,1705768255171,-500.0,0.00042191,31]
[312307709,1705768255180,-610.35,0.00042191,31]
[312307710,1705768255190,-500.0,0.00042191,31]
[312307711,1705768255199,-500.0,0.00042191,31]
[312307712,1705768255208,-1771.96,0.00042191,31]
[312307713,1705768255217,-500.0,0.00042191,31]
[312307714,1705768255227,-1165.2,0.00042191,31]
[312307715,1705768255236,-2127.81,0.00042191,31]
[312307716,1705768255245,-544.08255133,0.00042191,31]
[312307717,1705768255255,-500.0,0.00042191,31]
[312307718,1705768255264,-1094.5,0.00042191,31]
[312307719,1705768255273,-500.0,0.00042191,31]
[312307720,1705768255281,-500.0,0.00042191,31]
[312307721,1705768255291,-500.0,0.00042191,31]
[312307722,1705768255300,-500.0,0.00042191,31]
[312307723,1705768255309,-500.0,0.00042191,31]
[312307724,1705768255318,-7904.3,0.00042191,31]
[312307725,1705768255326,-500.0,0.00042191,31]
[312307726,1705768255338,-500.0,0.00042191,31]
[312307727,1705768255348,-543.29,0.00042191,31]
[312307728,1705768255359,-880.29,0.00042191,31]
[312307729,1705768255367,-9860.07,0.00042191,31]
[312307730,1705768255376,-500.0,0.00042191,31]
[312307731,1705768255385,-500.0,0.00042191,31]
[312307732,1705768255394,-500.0,0.00042191,31]
[312307733,1705768255404,-500.0,0.00042191,31]
[312307734,1705768255413,-500.0,0.00042191,31]
[312307735,1705768255424,-228.08798532,0.00042191,31]
[312307736,1705768255435,-2185.48,0.00042191,31]
[312307737,1705768255443,-500.0,0.00042191,31]
[312307738,1705768255452,-500.0,0.00042191,31]
[312307739,1705768255462,-500.0,0.00042191,31]
[312307740,1705768255471,-202.50262318,0.00042191,31]
[312307741,1705768255480,-500.0,0.00042191,31]
[312307742,1705768255489,-583.7,0.00042191,31]
[312307743,1705768255498,-500.0,0.00042191,31]
[312307744,1705768255507,-1814.69,0.00042191,31]
[312307745,1705768255516,-444.02232078,0.00042191,31]
[312307746,1705768255525,-2196.59,0.00042191,31]
[312307747,1705768255534,-500.0,0.00042191,31]
[312307748,1705768255544,-500.0,0.00042191,31]
[312307749,1705768255553,-500.0,0.00042191,31]
[312307750,1705768255562,-500.0,0.00042191,31]
[312307751,1705768255571,-500.0,0.00042191,31]
[312307752,1705768255582,-865.85,0.00042191,31]
[312307753,1705768255591,-500.0,0.00042191,31]
[312307754,1705768255601,-500.0,0.00042191,31]
[312307755,1705768255610,-1142.53,0.00042191,7]
[312307756,1705768255620,-500.0,0.00042191,31]
[312307757,1705768255630,-500.0,0.00042191,31]
[312307758,1705768255639,-500.0,0.00042191,31]
[312307759,1705768255648,-500.0,0.00042191,31]
[312307761,1705768255658,-500.0,0.00042191,31]
[312307762,1705768255668,-1927.86,0.00042191,31]
[312307763,1705768255676,-500.0,0.00042191,31]
[312307764,1705768255686,-571.64234806,0.00042344,2]
[312307765,1705768255695,-151.0,0.00042465,7]
[312307766,1705768255704,-714.627315,0.00042465,7]
[312307767,1705768255713,-714.627315,0.00042465,7]
[312307768,1705768255722,-500.0,0.00042465,31]
[312307769,1705768255731,-500.0,0.00042465,31]
[312307770,1705768255740,-500.0,0.00042465,31]
[312307771,1705768255749,-717.95,0.00042465,31]
[312307772,1705768255759,-530.38,0.00042465,31]
[312307773,1705768255769,-500.0,0.00042465,31]
[312307774,1705768255778,-500.0,0.00042465,31]
[312307775,1705768255788,-508.35230702,0.00042465,31]
[312307776,1705768255797,-500.0,0.00042465,31]
[312307777,1705768255806,-500.0,0.00042465,31]
[312307778,1705768255815,-500.0,0.00042465,31]
[312307779,1705768255824,-893.05,0.00042465,31]
[312307780,1705768255833,-500.0,0.00042465,31]
[312307781,1705768255842,-150.0,0.00042465,31]
[312307782,1705768255851,-1000.0,0.00042465,2]
[312307783,1705768255860,-212.55821094,0.00042465,31]
[312307784,1705768255869,-889.73,0.00042465,31]
[312307785,1705768255918,-898.56,0.00042465,31]
[312307786,1705768255927,-500.0,0.00042465,31]
[312307787,1705768255937,-500.0,0.00042465,31]
[312307788,1705768255946,-941.1,0.00042465,31]
[312307789,1705768255954,-500.0,0.00042465,31]
[312307790,1705768255963,-895.69,0.00042465,31]
[312307791,1705768255973,-500.0,0.00042465,31]
[312307792,1705768255982,-825.39,0.00042465,31]
[312307793,1705768255991,-500.0,0.00042465,31]
[312307794,1705768256001,-500.0,0.00042465,31]
[312307795,1705768256010,-500.0,0.00042465,31]
[312307796,1705768256018,-500.0,0.00042465,31]
[312307797,1705768256028,-500.0,0.00042465,31]
[312307798,1705768256037,-500.0,0.00042465,31]
[312307799,1705768256046,-500.0,0.00042465,31]
[312307800,1705768256055,-608.63,0.00042465,31]
[312307801,1705768256064,-500.0,0.00042465,31]
[312307802,1705768256073,-500.0,0.00042465,31]
[312307803,1705768256082,-750.02,0.00042465,31]
[312307804,1705768256092,-1120.83,0.00042465,31]
[312307805,1705768256100,-500.0,0.00042465,31]
[312307806,1705768256110,-631.02319269,0.00042465,31]
[312307807,1705768256118,-1517.52,0.00042465,31]
[312307808,1705768256127,-500.0,0.00042465,31]
[312307809,1705768256136,-500.0,0.00042465,31]
[312307810,1705768256145,-500.0,0.00042465,31]
[312307811,1705768256154,-500.0,0.00042465,31]
[312307812,1705768256163,-500.0,0.00042465,31]
[312307813,1705768256172,-533.5,0.00042465,31]
[312307814,1705768256181,-500.0,0.00042465,31]
[312307815,1705768256191,-864.03,0.00042465,31]
[312307816,1705768256200,-500.0,0.00042465,31]
[312307817,1705768256208,-188.57740821,0.00042465,31]
[312307818,1705768256217,-500.0,0.00042465,31]
[312307819,1705768256226,-500.0,0.00042465,31]
[312307820,1705768256236,-500.0,0.00042465,31]
[312307821,1705768256246,-500.0,0.00042465,31]
[312307822,1705768256255,-2134.02,0.00042465,31]
[312307823,1705768256264,-500.0,0.00042465,31]
[312307824,1705768256273,-3009.65,0.00042465,31]
[312307825,1705768256285,-508.40749364,0.00042465,31]
[312307826,1705768256295,-500.0,0.00042465,31]
[312307827,1705768256304,-521.44,0.00042465,31]
[312307828,1705768256314,-1074.76,0.00042465,31]
[312307829,1705768256323,-1071.51,0.00042465,31]
[312307830,1705768256333,-4081.11,0.00042465,31]
[312307831,1705768256343,-538.33551813,0.00042465,31]
[312307832,1705768256353,-500.0,0.00042465,31]
[312307833,1705768256362,-500.0,0.00042465,31]
[312307834,1705768256372,-1036.63,0.00042465,31]
[312307835,1705768256381,-593.13,0.00042465,31]
[312307836,1705768256390,-1282.52,0.00042465,31]
[312307837,1705768256399,-501.23704179,0.00042465,31]
[312307838,1705768256408,-38160.15,0.00042465,14]
[312307839,1705768256419,-502.67,0.00042465,31]
[312307840,1705768256430,-500.0,0.00042465,31]
[312307841,1705768256440,-500.0,0.00042465,2]
[312307842,1705768256449,-500.0,0.00042465,31]
[312307843,1705768256458,-500.0,0.00042465,31]
[312307844,1705768256467,-978.22,0.00042465,31]
[312307845,1705768256476,-2641.83,0.00042465,31]
[312307846,1705768256485,-661.96,0.00042465,31]
[312307847,1705768256494,-500.0,0.00042465,31]
[312307848,1705768256503,-2819.62,0.00042465,31]
[312307849,1705768256512,-500.0,0.00042465,31]
[312307850,1705768256521,-785.7,0.00042465,31]
[312307851,1705768256530,-671.17,0.00042465,31]
[312307852,1705768256539,-500.0,0.00042465,31]
[312307853,1705768256548,-500.0,0.00042465,31]
[312307854,1705768256557,-500.0,0.00042465,31]
[312307855,1705768256566,-500.0,0.00042465,31]
[312307856,1705768256575,-7239.54,0.00042465,31]
[312307857,1705768256584,-500.0,0.00042465,31]
[312307858,1705768256593,-3332.09,0.00042465,31]
[312307859,1705768256603,-1404.08,0.00042465,31]
[312307860,1705768256611,-500.0,0.00042465,31]
[312307861,1705768256620,-2010.87,0.00042465,31]
[312307862,1705768256630,-500.0,0.00042465,31]
[312307863,1705768256639,-603.98,0.00042465,31]
[312307864,1705768256648,-587.54265635,0.00042465,31]
[312307865,1705768256761,-500.0,0.00042465,31]
[312307866,1705768256771,-1881.4,0.00042465,31]
[312307867,1705768256780,-519.85,0.00042465,31]
[312307868,1705768256789,-500.0,0.00042465,20]
[312307869,1705768256798,-177.65456428,0.00042465,31]
[312307870,1705768256807,-20675.05,0.00042465,31]
[312307871,1705768256816,-12301.24,0.00042465,31]
[312307872,1705768256825,-1760.13,0.00042465,31]
[312307873,1705768256834,-924.27,0.00042465,31]
[312307874,1705768256844,-10176.61,0.00042465,31]
[312307875,1705768256853,-606.97,0.00042465,31]
[312307876,1705768256862,-4214.41,0.00042465,31]
[312307877,1705768256871,-856.72,0.00042465,31]